bitfinex-derivatives/quotes_ETHF0:USTF0_20210705
["timestamp","ask_amount","ask_price","bid_price","bid_amount"]
[1625520430249,2.20527,2230.7,2230.6,7.46694]
[1625520430350,2.20527,2230.7,2230.6,4.41054]
[1625520433060,2.20527,2230.7,2230.6,50.62554]
[1625520438185,1.0,2231.4,2230.6,50.62554]
[1625520439638,1.0,2231.4,2231.3,2.20527]
[1625520441091,2.20527,2231.5,2231.3,2.20527]
[1625520441692,2.20527,2231.4,2231.3,2.20527]
[1625520443098,3.20527,2231.4,2231.3,2.20527]
[1625520444302,2.20527,2231.4,2231.3,2.20527]
[1625520446406,2.20527,2231.4,2231.0,2.20527]
[1625520446507,1.0,2231.3,2229.4,64.3135]
[1625520446607,4.0629,2231.3,2229.4,64.3135]
[1625520447207,55.7166,2230.6,2229.4,64.3135]
[1625520447308,1.0,2230.5,2229.4,64.3135]
[1625520447758,2.20527,2230.3,2229.8,2.20527]
[1625520447858,1.0,2230.2,2229.8,2.20527]
[1625520449870,2.20527,2229.9,2229.8,2.20527]
[1625520449971,47.27757,2229.9,2229.8,2.20527]
[1625520451729,5.67347,2229.9,2229.8,2.20527]
[1625520456337,4.67347,2229.9,2229.8,2.20527]
[1625520456945,4.67347,2229.9,2229.3,38.4471]
[1625520457042,5.67347,2229.9,2229.3,38.4471]
[1625520457846,2.20527,2229.5,2229.3,38.4471]
[1625520459902,2.20527,2229.5,2229.3,40.65237]
[1625520472172,2.20527,2229.5,2229.3,38.4471]
[1625520474089,2.20527,2229.5,2229.4,2.20527]
[1625520475046,1.0,2229.9,2229.3,38.4471]
[1625520476299,2.20527,2229.5,2229.4,2.20527]
[1625520477701,2.20527,2229.5,2229.3,38.4471]
[1625520479956,5.10457,2229.5,2229.3,38.4471]
[1625520482509,2.8993,2229.5,2229.3,38.4471]
[1625520482609,42.71377,2229.7,2229.3,38.4471]
[1625520484210,43.71377,2229.7,2229.3,38.4471]
[1625520484312,42.71377,2229.7,2229.3,38.4471]
[1625520484411,42.71377,2229.7,2229.5,2.20527]
[1625520484614,2.20527,2229.7,2229.5,2.20527]
[1625520485262,2.20527,2229.7,2229.6,42.1796]
[1625520486365,2.20527,2229.7,2229.6,44.38487]
[1625520486618,2.20527,2229.7,2229.6,2.20527]
[1625520487768,53.00397,2229.7,2229.6,2.20527]
[1625520488922,2.20527,2229.7,2229.6,2.20527]
[1625520489021,2.20527,2229.7,2229.5,41.53667]
[1625520490387,2.20527,2229.7,2229.5,43.74194]
[1625520493896,1.0,2229.6,2229.5,43.74194]
[1625520494097,2.20527,2229.7,2229.5,43.74194]
[1625520497761,2.20527,2229.7,2229.5,41.53667]
[1625520499764,3.20527,2229.7,2229.5,2.20527]
[1625520500213,3.20527,2229.7,2229.1,2.20527]
[1625520500468,2.20527,2229.3,2229.1,2.20527]
[1625520501618,2.20527,2229.3,2229.1,52.07297]
[1625520501718,2.20527,2229.3,2229.1,2.20527]
[1625520501820,1.0,2229.2,2229.1,2.20527]
[1625520501919,1.0,2229.2,2228.3,1.78070837]
[1625520502120,1.0,2229.2,2228.0,1.78228368]
[1625520502420,38.9771,2228.5,2227.9,1.78278814]
[1625520502526,2.4811,2228.5,2228.4,2.20527]
[1625520504641,2.20527,2228.6,2228.4,2.20527]
[1625520505791,2.20527,2228.6,2228.0,2.20527]
[1625520505891,5.18917,2228.6,2228.0,2.20527]
[1625520506243,1.0,2228.5,2228.0,2.20527]
[1625520506544,4.41054,2228.1,2228.0,2.20527]
[1625520506644,4.41054,2228.1,2227.8,1.7832451]
[1625520506994,5.41054,2228.1,2227.8,1.7832451]
[1625520507095,5.41054,2228.1,2227.7,4.75255417]
[1625520507096,47.1547,2227.9,2227.7,2.20527]
[1625520507896,48.1547,2227.9,2227.7,2.20527]
[1625520508098,43.853,2227.4,2227.3,1.78445553]
[1625520508200,43.853,2227.4,2227.1,1.78540484]
[1625520508498,43.853,2227.4,2227.2,2.20527]
[1625520508499,46.05827,2227.4,2227.2,2.20527]
[1625520510552,2.20527,2227.3,2226.9,2.20527]
[1625520513756,3.20527,2227.3,2226.9,2.20527]
[1625520514156,2.20527,2227.3,2226.9,2.20527]
[1625520514665,2.20527,2227.3,2227.2,2.20527]
[1625520515512,43.853,2227.4,2227.2,2.20527]
[1625520516763,46.05827,2227.4,2227.2,2.20527]
[1625520519119,2.20527,2227.4,2227.2,2.20527]
[1625520520021,3.20527,2227.4,2227.2,2.20527]
[1625520520273,3.20527,2227.4,2227.1,42.328]
[1625520522739,3.20527,2227.4,2227.2,2.20527]
[1625520523189,2.20527,2227.4,2227.2,2.20527]
[1625520526905,2.20527,2227.4,2227.1,42.328]
[1625520527355,2.20527,2227.4,2226.9,2.20527]
[1625520527556,1.0,2227.3,2226.9,2.20527]
[1625520528058,52.3068,2227.3,2226.9,2.20527]
[1625520528808,51.3068,2227.3,2226.9,2.20527]
[1625520530367,52.3068,2227.3,2226.9,2.20527]
[1625520530923,51.3068,2227.3,2226.9,2.20527]
[1625520532822,51.3068,2227.3,2227.2,2.20527]
[1625520536584,2.20527,2227.4,2227.2,2.20527]
[1625520542508,7e-05,2227.4,2227.2,2.20527]
[1625520542956,7e-05,2227.4,2227.3,2.20527]
[1625520543657,0.00014,2227.6,2227.3,2.20527]
[1625520543860,4.21766923,2230.3,2227.3,2.20527]
[1625520543959,1.0,2228.8,2227.3,2.20527]
[1625520544058,1.0,2228.8,2227.3,3.09607]
[1625520544461,1.0,2228.8,2228.4,48.8558]
[1625520544762,19.582,2229.8,2228.4,48.8558]
[1625520544963,1.0,2229.7,2229.1,2.20527]
[1625520545163,1.0,2229.7,2229.6,38.6047]
[1625520545263,1.0,2229.7,2229.6,30.9758]
[1625520545665,1.84471714,2230.4,2229.6,30.9758]
[1625520545768,50.3945,2230.2,2229.6,30.9758]
[1625520546067,1.0,2230.1,2229.6,30.9758]
[1625520546970,1.0,2230.1,2230.0,2.20527]
[1625520547620,1.8443629,2231.0,2230.0,2.20527]
[1625520547868,14.0237,2231.1,2230.0,2.20527]
[1625520547869,1.0,2230.9,2230.0,2.20527]
[1625520547969,1.0,2230.9,2230.4,42.642]
[1625520548922,1.0,2230.9,2230.8,2.20527]
[1625520550484,1.0,2230.9,2230.8,49.68957]
[1625520551587,2.20527,2231.0,2230.8,49.68957]
[1625520554557,2.20527,2231.0,2230.8,52.80187]
[1625520556661,2.20527,2231.2,2230.8,52.80187]
[1625520557110,2.20527,2231.2,2231.1,2.20527]
[1625520559225,2.20527,2231.5,2231.1,2.20527]
[1625520559325,1.0,2231.8,2231.1,2.20527]
[1625520559926,1.0,2231.8,2231.7,44.6454]
[1625520560227,1.8395381,2232.6,2231.1,2.20527]
[1625520560331,3.3593,2232.5,2231.1,2.20527]
[1625520561029,3.3593,2232.5,2232.0,40.0758]
[1625520561128,5.56457,2232.5,2232.4,2.20527]
[1625520563480,3.3593,2232.5,2232.4,2.20527]
[1625520564685,3.3593,2232.5,2232.4,7e-05]
[1625520566190,3.3593,2232.5,2232.0,40.0758]
[1625520567292,2.20527,2232.2,2232.0,42.28107]
[1625520567392,1.0,2232.1,2232.0,42.28107]
[1625520577736,1.0,2232.6,2232.0,42.28107]
[1625520579390,1.0,2232.6,2232.5,4.41054]
[1625520585364,1.0,2232.6,2232.0,40.0758]
[1625520585464,1.0,2232.6,2232.4,2.20527]
[1625520587918,1.0,2232.5,2232.4,2.20527]
[1625520588018,4.41054,2232.9,2232.4,2.20527]
[1625520588117,4.2063,2232.8,2232.4,2.20527]
[1625520589530,4.2063,2232.8,2232.7,2.20527]
[1625520590233,4.2063,2232.8,2232.0,40.0758]
[1625520591535,2.20527,2232.6,2232.2,2.20527]
[1625520591635,1.0,2232.5,2232.2,2.20527]
[1625520593944,1.0,2232.5,2232.0,42.28107]
[1625520595603,2.20527,2232.3,2232.0,44.48634]
[1625520595705,1.0,2232.2,2232.0,44.48634]
[1625520597020,1.0,2232.2,2231.6,53.465]
[1625520597122,3.9827,2232.2,2231.6,53.465]
[1625520597579,2.20527,2232.0,2231.7,2.20527]
[1625520597675,1.0,2231.9,2231.7,2.20527]
[1625520597978,1.0,2231.9,2231.6,50.83837]
[1625520598330,1.0,2231.9,2231.6,50.01617]
[1625520599640,2.20527,2231.7,2231.6,50.01617]
[1625520599735,3.20527,2231.7,2231.6,50.01617]
[1625520602144,3.20527,2231.7,2231.2,2.20527]
[1625520602243,6.76547,2231.7,2231.2,2.20527]
[1625520603294,45.4061,2231.3,2231.2,2.20527]
[1625520603595,47.61137,2231.3,2231.2,2.20527]
[1625520603696,48.61137,2231.3,2231.2,2.20527]
[1625520604004,48.61137,2231.3,2230.4,63.1554]
[1625520605620,2.20527,2231.0,2230.7,2.20527]
[1625520607369,3.20527,2231.0,2230.7,2.20527]
[1625520609624,1.0,2231.0,2230.8,2.20527]
[1625520610123,47.61137,2231.3,2230.8,2.20527]
[1625520611127,2.20527,2231.3,2230.8,2.20527]
[1625520611632,2.20527,2231.3,2231.2,2.20527]
[1625520615202,67.6184,2231.7,2231.2,2.20527]
[1625520615602,2.20527,2231.5,2231.2,2.20527]
[1625520618562,3.20527,2231.5,2231.2,2.20527]
[1625520619869,2.20527,2231.5,2231.2,2.20527]
[1625520623279,1.0,2231.9,2231.2,2.20527]
[1625520623679,2.20527,2231.3,2231.2,2.20527]
[1625520623882,1.0,2232.0,2231.2,2.20527]
[1625520624084,15.2317,2232.1,2231.2,2.20527]
[1625520625692,2.20527,2231.7,2231.5,2.20527]
[1625520625789,2.20527,2231.7,2231.5,39.96797]
[1625520627299,15.2317,2232.1,2231.5,42.64847]
[1625520627649,1.0,2232.3,2231.5,42.64847]
[1625520627749,2.20527,2232.1,2231.9,2.20527]
[1625520629418,2.20527,2232.1,2232.0,46.5742]
[1625520630831,2.20527,2232.1,2232.0,50.1031]
[1625520634345,1.32034907,2232.3,2232.0,50.1031]
[1625520634548,1.32022359,2232.5,2232.0,50.1031]
[1625520634952,1.32015474,2232.7,2232.0,50.1031]
[1625520635664,1.3213447,2232.6,2232.0,50.1031]
[1625520635763,1.3213447,2232.6,2232.5,2.20527]
[1625520636465,1.3213447,2232.6,2232.5,44.16517]
[1625520637718,1.84988258,2232.7,2232.5,44.16517]
[1625520638070,1.32158683,2232.6,2232.5,44.16517]
[1625520639477,8.683e-05,2232.6,2232.5,44.16517]
[1625520640785,1.85092984,2232.8,2232.5,44.16517]
[1625520640886,1.85092984,2232.8,2232.5,47.64767]
[1625520641186,2.64418549,2232.9,2232.5,47.64767]
[1625520641187,1.85039624,2232.9,2232.5,47.64767]
[1625520641536,1.85074859,2232.8,2232.5,47.64767]
[1625520641790,1.85074859,2232.8,2232.7,2.20527]
[1625520641888,1.85019848,2232.9,2232.7,2.20527]
[1625520644447,4.49293811,2233.0,2232.7,2.20527]
[1625520644545,1.84979743,2233.0,2232.7,2.20527]
[1625520644847,1.84988725,2233.1,2232.7,2.20527]
[1625520645448,1.84988725,2233.1,2233.0,40.1239]
[1625520645547,1.84988725,2233.1,2233.0,42.5498]
[1625520645747,1.84990126,2233.2,2233.0,42.5498]
[1625520645846,1.84990126,2233.2,2233.1,2.20527]
[1625520646051,1.26e-06,2233.2,2233.1,2.20527]
[1625520646153,4.84798609,2233.3,2233.1,2.20527]
[1625520646154,0.17217,2233.3,2233.1,2.20527]
[1625520646248,1.84905662,2233.4,2233.1,2.20527]
[1625520647501,2.64150946,2233.5,2233.1,2.20527]
[1625520647502,2.64119665,2233.6,2233.1,2.20527]
[1625520647802,2.64119665,2233.6,2233.5,2.20527]
[1625520648750,2.64006413,2233.7,2233.5,2.20527]
[1625520649355,2.64006413,2233.7,2233.6,43.3069]
[1625520649455,3.43208337,2233.9,2233.6,43.3069]
[1625520649858,3.43208337,2233.9,2233.8,2.20527]
[1625520650159,3.43067175,2234.0,2233.8,2.20527]
[1625520650459,1.0,2233.9,2233.8,2.20527]
[1625520650864,4.43073558,2233.9,2233.8,2.20527]
[1625520651322,3.43073558,2233.9,2233.8,2.20527]
[1625520652284,54.01322539,2234.1,2233.8,2.20527]
[1625520652285,3.42941234,2234.0,2233.8,2.20527]
[1625520652529,4.42941234,2234.0,2233.8,2.20527]
[1625520652627,4.42941234,2234.0,2233.6,43.3069]
[1625520653081,2.63800771,2233.7,2233.6,43.3069]
[1625520653882,2.63800771,2233.7,2233.6,47.71744]
[1625520654183,2.63718307,2233.8,2233.6,47.71744]
[1625520655744,2.63710273,2233.9,2233.6,47.71744]
[1625520656850,4.8414209,2234.0,2233.6,47.71744]
[1625520657350,2.09e-05,2234.0,2233.6,47.71744]
[1625520657448,2.09e-05,2234.0,2233.6,50.99824]
[1625520657599,1.0,2234.2,2233.6,50.99824]
[1625520657901,1.0,2234.2,2234.1,4.41054]
[1625520659955,1.0,2234.5,2234.1,4.41054]
[1625520660055,1.0,2234.5,2234.1,6.87404]
[1625520660260,2.20527,2234.6,2234.1,6.87404]
[1625520660354,49.60739083,2234.8,2234.1,6.87404]
[1625520660657,46.1845,2234.8,2234.1,6.87404]
[1625520661860,46.1845,2234.8,2234.7,2.20527]
[1625520661959,46.1845,2234.8,2234.7,4.41054]
[1625520662261,1.0,2234.8,2234.7,4.41054]
[1625520662359,3.42281772,2234.9,2234.7,3.34917975]
[1625520662460,1.0,2235.0,2234.7,3.34917975]
[1625520662959,1.0,2235.0,2234.8,45.1339]
[1625520664017,1.0,2235.0,2234.7,3.34917975]
[1625520670154,1.0,2235.1,2234.7,3.34917975]
[1625520670653,2.20527,2235.3,2234.7,3.34917975]
[1625520671956,3.20527,2235.3,2235.2,4.41054]
[1625520672057,2.20527,2235.3,2235.2,4.41054]
[1625520672857,3.20527,2235.3,2235.2,4.41054]
[1625520675561,3.20527,2235.3,2234.0,51.9206]
[1625520676021,3.20527,2235.3,2234.8,2.20527]
[1625520676915,38.3094,2234.9,2234.8,2.20527]
[1625520677015,39.3094,2234.9,2234.8,2.20527]
[1625520681483,41.4985,2234.9,2234.8,2.20527]
[1625520682035,43.70377,2234.9,2234.6,2.20527]
[1625520684096,2.20527,2234.7,2234.6,2.20527]
[1625520684193,3.20527,2234.7,2234.6,2.20527]
[1625520698490,3.20527,2234.7,2234.6,1.14395751]
[1625520700245,3.20527,2234.7,2234.2,2.20527]
[1625520702245,2.20527,2234.3,2234.2,2.20527]
[1625520702795,3.20527,2234.7,2234.2,2.20527]
[1625520704256,3.20527,2234.7,2234.5,2.20527]
[1625520713997,39.7696,2234.6,2234.5,2.20527]
[1625520714104,40.7696,2234.6,2234.5,2.20527]
[1625520724296,44.19842627,2234.6,2234.5,2.20527]
[1625520726803,40.7696,2234.6,2234.5,2.20527]
[1625520727562,44.19988191,2234.6,2234.5,2.20527]
[1625520727910,40.7696,2234.6,2234.5,2.20527]
[1625520730475,39.7696,2234.6,2234.5,2.20527]
[1625520731781,43.20266078,2234.6,2234.5,2.20527]
[1625520732344,39.7696,2234.6,2234.5,2.20527]
[1625520738166,44.00018853,2234.6,2234.5,2.20527]
[1625520740530,39.7696,2234.6,2234.5,2.20527]
[1625520742591,6.43688118,2234.7,2234.5,2.20527]
[1625520743250,3.43882373,2234.6,2234.5,2.20527]
[1625520744264,59.82272673,2234.7,2234.5,2.20527]
[1625520744514,59.82272673,2234.7,2234.4,3.2536]
[1625520745214,59.82272673,2234.7,2234.3,48.7001]
[1625520746418,5.64492673,2234.7,2234.3,48.7001]
[1625520746716,5.64492673,2234.7,2234.6,2.20527]
[1625520747067,2.20527,2234.7,2234.6,43.36397]
[1625520756553,2.20527,2234.7,2234.6,41.1587]
[1625520758656,2.20527,2234.7,2234.6,52.1587]
[1625520763170,41.27169474,2234.9,2234.6,52.1587]
[1625520764876,43.47696474,2234.9,2234.8,1.40953354]
[1625520765631,40.03917,2234.9,2234.8,1.40953354]
[1625520766033,43.4769469,2234.9,2234.8,1.40953354]
[1625520766936,45.6822169,2234.9,2234.8,1.40953354]
[1625520767237,42.24444,2234.9,2234.8,1.40953354]
[1625520767736,42.24444,2234.9,2234.8,43.60993354]
[1625520768541,45.68190756,2234.9,2234.8,43.60993354]
[1625520768889,42.24444,2234.9,2234.8,43.60993354]
[1625520771706,42.24444,2234.9,2234.8,3.92033354]
[1625520773067,42.24444,2234.9,2234.8,60.15713354]
[1625520777535,4.41054,2234.9,2234.8,60.15713354]
[1625520777633,7.05329867,2234.9,2234.8,60.15713354]
[1625520777734,4.84802867,2234.9,2234.8,60.15713354]
[1625520782004,2.64275867,2234.9,2234.8,60.15713354]
[1625520782558,2.64217419,2235.0,2234.8,60.15713354]
[1625520783008,2.64217419,2235.0,2234.9,2.20527]
[1625520785614,52.71984363,2235.1,2234.9,2.20527]
[1625520789641,2.64164363,2235.1,2234.9,2.20527]
[1625520790193,2.64164363,2235.1,2235.0,49.5836]
[1625520791500,2.64112837,2235.2,2235.0,49.5836]
[1625520793058,2.64112837,2235.2,2235.1,2.20527]
[1625520793659,2.64079459,2235.3,2235.1,2.20527]
[1625520793758,3.64079459,2235.3,2235.1,2.20527]
[1625520794010,2.64080694,2235.2,2235.1,2.20527]
[1625520794110,6.05370694,2235.2,2235.1,2.20527]
[1625520794515,51.58900694,2235.2,2235.1,2.20527]
[1625520796971,48.9482,2235.2,2235.1,2.20527]
[1625520798937,49.9482,2235.2,2235.1,2.20527]
[1625520799587,48.9482,2235.2,2235.1,2.20527]
[1625520800085,49.9482,2235.2,2235.1,2.20527]
[1625520801490,48.9482,2235.2,2235.1,2.20527]
[1625520801739,49.9482,2235.2,2235.1,2.20527]
[1625520801989,48.9482,2235.2,2235.1,2.20527]
[1625520805100,49.9482,2235.2,2235.1,2.20527]
[1625520806202,4.4129,2235.2,2235.1,2.20527]
[1625520806711,4.4129,2235.2,2235.1,40.14217]
[1625520808574,7.05347188,2235.2,2235.1,40.14217]
[1625520808927,1.0,2235.2,2235.1,40.14217]
[1625520810228,1.0,2235.3,2235.1,40.14217]
[1625520810430,41.3145,2235.2,2235.1,2.20527]
[1625520810528,42.3145,2235.2,2235.1,2.20527]
[1625520826472,44.16417271,2235.2,2235.1,2.20527]
[1625520829129,44.16417271,2235.2,2235.1,39.87757]
[1625520829577,42.3145,2235.2,2235.1,39.87757]
[1625520829929,44.1647964,2235.2,2235.1,39.87757]
[1625520830129,44.1647964,2235.2,2235.1,2.20527]
[1625520831089,44.95829504,2235.2,2235.1,2.20527]
[1625520832046,44.95829504,2235.2,2235.1,55.69577]
[1625520832845,42.3145,2235.2,2235.1,55.69577]
[1625520834048,44.16535171,2235.2,2235.1,55.69577]
[1625520835000,44.95874907,2235.2,2235.1,55.69577]
[1625520840245,44.16544164,2235.2,2235.1,55.69577]
[1625520841193,42.3145,2235.2,2235.1,55.69577]
[1625520841495,44.95867324,2235.2,2235.1,55.69577]
[1625520842653,42.3145,2235.2,2235.1,55.69577]
[1625520844602,44.95870722,2235.2,2235.1,55.69577]
[1625520853595,42.3145,2235.2,2235.1,55.69577]
[1625520853844,44.95952577,2235.2,2235.1,55.69577]
[1625520854601,42.3145,2235.2,2235.1,55.69577]
[1625520854897,44.95972785,2235.2,2235.1,55.69577]
[1625520855556,3.64522785,2235.2,2235.1,55.69577]
[1625520856601,2.85176072,2235.2,2235.1,55.69577]
[1625520856954,3.64527716,2235.2,2235.1,55.69577]
[1625520857050,4.55317716,2235.2,2235.1,55.69577]
[1625520857150,3.64527716,2235.2,2235.1,55.69577]
[1625520857802,2.64527716,2235.2,2235.1,55.69577]
[1625520858203,1.8518165,2235.2,2235.1,55.69577]
[1625520858654,1.8517248,2235.3,2235.1,55.69577]
[1625520858753,3.43908778,2235.6,2235.1,55.69577]
[1625520859054,3.43884784,2235.7,2235.1,55.69577]
[1625520859403,3.43884784,2235.7,2235.5,45.2946]
[1625520859505,3.43884784,2235.7,2235.6,4.41054]
[1625520860906,5.64351735,2235.8,2235.6,4.41054]
[1625520861959,2.20527,2235.8,2235.6,4.41054]
[1625520865044,57.30457,2235.8,2235.6,4.41054]
[1625520865395,58.20097,2235.8,2235.6,4.41054]
[1625520865496,57.30457,2235.8,2235.6,4.41054]
[1625520870103,57.30457,2235.8,2235.6,7.26984]
[1625520871155,46.30457,2235.8,2235.6,7.26984]
[1625520873773,46.30457,2235.8,2235.6,4.41054]
[1625520876571,46.30457,2235.8,2235.6,5.29554]
[1625520876723,46.30457,2235.8,2235.7,44.0648]
[1625520883458,47.62581489,2235.8,2235.7,44.0648]
[1625520886465,47.62581489,2235.8,2235.6,4.41054]
[1625520888218,46.30457,2235.8,2235.6,4.41054]
[1625520888520,47.30457,2235.8,2235.6,4.41054]
[1625520889223,47.30457,2235.8,2234.6,70.4154]
[1625520889622,2.20527,2235.3,2235.0,2.20527]
[1625520889826,37.8565,2235.1,2235.0,2.20527]
[1625520899215,2.20527,2235.2,2235.0,2.20527]
[1625520899664,4.41054,2235.2,2235.0,2.20527]
[1625520899763,4.41054,2235.2,2235.1,39.6752]
[1625520903673,4.41054,2235.2,2235.0,2.20527]
[1625520904425,5.41054,2235.2,2235.0,2.20527]
[1625520905074,4.41054,2235.2,2235.0,2.20527]
[1625520905479,5.41054,2235.2,2235.0,2.20527]
[1625520906475,7.90014,2235.2,2235.0,2.20527]
[1625520906826,55.81094,2235.2,2235.0,2.20527]
[1625520918225,57.13303911,2235.2,2235.0,2.20527]
[1625520918326,9.22223911,2235.2,2235.0,2.20527]
[1625520918478,7.90014,2235.2,2235.0,2.20527]
[1625520919129,5.41054,2235.2,2235.0,2.20527]
[1625520927116,5.41054,2235.2,2235.1,47.4804]
[1625520928214,5.41054,2235.2,2235.0,2.20527]
[1625520928822,43.5474,2235.1,2235.0,2.20527]
[1625520939155,44.5474,2235.1,2235.0,2.20527]
[1625520939710,45.87056248,2235.1,2235.0,2.20527]
[1625520941821,44.5474,2235.1,2235.0,2.20527]
[1625520942771,45.87070913,2235.1,2235.0,2.20527]
[1625520943824,2.32330913,2235.1,2235.0,2.20527]
[1625520945830,41.02400913,2235.1,2235.0,2.20527]
[1625520947234,39.7007,2235.1,2235.0,2.20527]
[1625520947791,41.02421413,2235.1,2235.0,2.20527]
[1625520949104,39.7007,2235.1,2235.0,2.20527]
[1625520950263,41.02417233,2235.1,2235.0,2.20527]
[1625520952421,41.02417233,2235.1,2234.8,2.20527]
[1625520953377,40.02417233,2235.1,2234.8,2.20527]
[1625520954282,2.20527,2234.9,2234.8,2.20527]
[1625520954430,5.08137,2234.9,2234.8,2.20527]
[1625520961375,47.59977,2234.9,2234.8,2.20527]
[1625520962020,48.59977,2234.9,2234.8,2.20527]
[1625520967687,48.59977,2234.9,2234.5,1.28978716]
[1625520968299,1.32354199,2234.7,2234.2,1.29172109]
[1625520968388,1.0,2234.6,2234.2,1.29172109]
[1625520968587,2.20527,2234.3,2234.2,1.29172109]
[1625520968785,5.09327,2234.3,2234.2,1.29172109]
[1625520968887,48.99917,2234.3,2234.2,1.29172109]
[1625520969186,48.99917,2234.3,2234.1,3.49695529]
[1625520969688,49.99917,2234.3,2234.1,3.49695529]
[1625520971089,49.99917,2234.3,2234.1,2.20527]
[1625520998638,49.99917,2234.3,2233.6,2.20527]
[1625520998740,40.0176,2233.9,2233.6,2.20527]
[1625520998839,2.20527,2233.7,2233.6,2.20527]
[1625520998939,5.29267,2233.7,2233.6,2.20527]
[1625521004611,3.0874,2233.7,2233.6,2.20527]
[1625521004711,41.0176,2233.9,2233.6,2.20527]
[1625521004911,4.89847,2233.7,2233.6,2.20527]
[1625521005262,2.6932,2233.7,2233.6,2.20527]
[1625521006875,4.89847,2233.7,2233.6,2.20527]
[1625521007424,2.6932,2233.7,2233.6,2.20527]
[1625521010234,1.0,2233.8,2233.6,2.20527]
[1625521010884,2.20527,2233.7,2233.6,2.20527]
[1625521013939,4.0005,2233.8,2233.6,2.20527]
[1625521018599,47.486,2233.7,2233.6,2.20527]
[1625521020958,6.20577,2233.8,2233.6,2.20527]
[1625521022512,5.20577,2233.8,2233.6,2.20527]
[1625521023217,2.20527,2233.8,2233.6,2.20527]
[1625521024739,49.18544348,2234.5,2233.6,2.20527]
[1625521024842,1.0,2234.1,2233.6,2.20527]
[1625521025591,43.0173,2234.2,2233.6,2.20527]
[1625521026092,1.0,2234.1,2233.6,2.20527]
[1625521026493,43.0173,2234.2,2233.6,2.20527]
[1625521026997,43.0173,2234.2,2234.0,2.20527]
[1625521028999,2.20527,2234.1,2234.0,2.20527]
[1625521029198,3.20527,2234.1,2234.0,2.20527]
[1625521029597,3.20527,2234.1,2232.9,3.35454712]
[1625521029598,3.20527,2234.1,2233.2,1.29080211]
[1625521031005,3.20527,2234.1,2233.3,2.20527]
[1625521031106,4.75137,2233.8,2233.3,2.20527]
[1625521032208,5.75137,2233.8,2233.3,2.20527]
[1625521032962,5.75137,2233.8,2233.7,45.9296]
[1625521033712,5.75137,2233.8,2233.7,46.826]
[1625521034417,5.75137,2233.8,2233.7,45.9296]
[1625521035077,4.75137,2233.8,2233.7,45.9296]
[1625521036288,2.20527,2233.8,2233.7,45.9296]
[1625521036791,1.0,2234.0,2233.7,45.9296]
[1625521037091,1.0,2234.0,2233.8,2.20527]
[1625521039045,1.0,2234.0,2233.9,2.20527]
[1625521042298,2.20527,2234.1,2233.9,2.20527]
[1625521043449,2.20527,2234.1,2234.0,16.363695]
[1625521043750,2.20527,2234.1,2233.9,2.20527]
[1625521046216,4.52656084,2234.5,2233.9,2.20527]
[1625521046318,4.52656084,2234.5,2234.0,16.323212]
[1625521046417,3.52656084,2234.5,2234.0,16.323212]
[1625521046719,2.20527,2234.5,2234.0,16.323212]
[1625521047118,4.41054,2234.5,2234.4,2.20527]
[1625521047620,4.41054,2234.5,2234.4,58.32087]
[1625521048369,1.32155203,2234.7,2234.4,58.32087]
[1625521048672,1.32155203,2234.7,2234.4,74.491772]
[1625521049131,1.32155203,2234.7,2234.6,2.20527]
[1625521050081,1.32177844,2234.8,2234.6,2.20527]
[1625521050479,1.32175846,2234.9,2234.6,2.20527]
[1625521051146,1.32175846,2234.9,2234.8,2.20527]
[1625521053798,1.32175846,2234.9,2234.8,48.66887]
[1625521056355,1.851558,2234.9,2234.8,48.66887]
[1625521057107,2.85140693,2235.0,2234.8,48.66887]
[1625521058507,1.85156108,2234.9,2234.8,48.66887]
[1625521058607,2.85156108,2234.9,2234.8,48.66887]
[1625521059659,2.32244424,2234.9,2234.8,48.66887]
[1625521059959,1.0,2234.9,2234.8,48.66887]
[1625521061312,2.32239711,2234.9,2234.8,48.66887]
[1625521062213,1.32239711,2234.9,2234.8,48.66887]
[1625521063318,1.32221601,2235.0,2234.8,48.66887]
[1625521063619,1.32221531,2234.9,2234.8,48.66887]
[1625521065177,1.32207269,2235.0,2234.8,48.66887]
[1625521065278,1.32207269,2235.0,2234.8,46.4636]
[1625521065774,1.32207269,2235.0,2234.9,4.41054]
[1625521070980,1.32158957,2235.1,2234.9,4.41054]
[1625521075863,1.8503875,2235.2,2234.9,4.41054]
[1625521075864,1.32122141,2235.2,2234.9,4.41054]
[1625521076215,1.32112226,2235.3,2234.9,4.41054]
[1625521077719,2.32085444,2235.4,2234.9,4.41054]
[1625521078073,2.32085444,2235.4,2235.3,2.20527]
[1625521079219,2.32085444,2235.4,2235.3,55.67717]
[1625521080476,1.0,2235.4,2235.3,55.67717]
[1625521087132,1.0,2235.7,2235.3,59.02837]
[1625521088234,1.0,2235.7,2235.6,2.20527]
[1625521088686,1.3192649,2235.9,2235.6,2.20527]
[1625521088787,1.0,2235.8,2235.6,2.20527]
[1625521089035,1.3192649,2235.9,2235.6,2.20527]
[1625521089237,3.52419424,2236.0,2235.6,2.20527]
[1625521089936,4.52419424,2236.0,2235.6,2.20527]
[1625521090250,4.52419424,2236.0,2235.9,2.20527]
[1625521090651,3.20527,2236.0,2235.9,2.20527]
[1625521095620,3.20527,2236.0,2235.9,4.85117]
[1625521096221,7e-05,2236.0,2235.9,4.85117]
[1625521096320,1.0,2236.2,2235.9,5.85117]
[1625521097720,0.0001,2236.2,2235.9,5.85117]
[1625521097822,1.31710557,2236.8,2235.9,5.85117]
[1625521098273,1.31710557,2236.8,2236.7,4.41054]
[1625521098475,4.0492339,2236.9,2236.7,4.41054]